[Event "Live Chess"]
[Site "Chess.com"]
[Date "2023.05.20"]
[Round "-"]
[White "LL220284LL"]
[Black "jennybobby44"]
[Result "1-0"]
[WhiteElo "2377"]
[BlackElo "1846"]
[TimeControl "300"]
[EndTime "14:14:00 PDT"]
[Termination "LL220284LL won by resignation"]

1. e3 {[%clk 0:04:58.7]} 1... d5 {[%clk 0:04:58.8]} 2. b3 {[%clk 0:04:57.9]}
2... Nf6 {[%clk 0:04:57.8]} 3. Bb2 {[%clk 0:04:57.4]} 3... g6 {[%clk 0:04:55.6]}
4. Nf3 {[%clk 0:04:57.3]} 4... Bg7 {[%clk 0:04:54.9]} 5. Be2 {[%clk 0:04:55.4]}
5... O-O {[%clk 0:04:54.4]} 6. O-O {[%clk 0:04:55.2]} 6... c5 {[%clk 0:04:53.5]}
7. d4 {[%clk 0:04:54]} 7... b6 {[%clk 0:04:52.7]} 8. Nbd2 {[%clk 0:04:52.4]}
8... Bb7 {[%clk 0:04:52.3]} 9. c4 {[%clk 0:04:51.5]} 9... e6 {[%clk 0:04:51.1]}
10. cxd5 {[%clk 0:04:50.4]} 10... exd5 {[%clk 0:04:50.2]} 11. Rc1 {[%clk
0:04:50.3]} 11... Nbd7 {[%clk 0:04:49]} 12. Re1 {[%clk 0:04:48]} 12... Ne4
{[%clk 0:04:47.7]} 13. Qc2 {[%clk 0:04:46.1]} 13... Rc8 {[%clk 0:04:44.3]} 14.
Qb1 {[%clk 0:04:45.4]} 14... h6 {[%clk 0:04:36.3]} 15. Qa1 {[%clk 0:04:44.2]}
15... Qf6 {[%clk 0:04:18.2]} 16. Rc2 {[%clk 0:04:38.7]} 16... Qe6 {[%clk
0:04:03.8]} 17. dxc5 {[%clk 0:04:35.9]} 17... Bxb2 {[%clk 0:03:57.5]} 18. Qxb2
{[%clk 0:04:35.8]} 18... bxc5 {[%clk 0:03:52.1]} 19. Nxe4 {[%clk 0:04:34.5]}
19... dxe4 {[%clk 0:03:50.6]} 20. Nd2 {[%clk 0:04:33.4]} 20... Ne5 {[%clk
0:03:44.9]} 21. Nc4 {[%clk 0:04:30.1]} 21... Nd3 {[%clk 0:03:32]} 22. Bxd3
{[%clk 0:04:29.3]} 22... exd3 {[%clk 0:03:30.8]} 23. Rd2 {[%clk 0:04:29]} 23...
Qe4 {[%clk 0:03:29.8]} 24. f3 {[%clk 0:04:27.6]} 24... Qd5 {[%clk 0:03:18]} 25.
Red1 {[%clk 0:04:26]} 25... Qg5 {[%clk 0:03:04.6]} 26. e4 {[%clk 0:04:22.8]}
26... Rcd8 {[%clk 0:02:52.4]} 27. Rxd3 {[%clk 0:04:20]} 27... Rxd3 {[%clk
0:02:24.3]} 28. Rxd3 {[%clk 0:04:19.9]} 28... Rd8 {[%clk 0:02:23.8]} 29. Rxd8+
{[%clk 0:04:17.8]} 29... Qxd8 {[%clk 0:02:23.7]} 30. Qd2 {[%clk 0:04:17.4]}
30... Qf6 {[%clk 0:02:18.8]} 31. Kf2 {[%clk 0:04:12.8]} 31... g5 {[%clk
0:02:17.5]} 32. Qb2 {[%clk 0:04:09.9]} 32... Qf4 {[%clk 0:02:13.7]} 33. g3
{[%clk 0:04:06.9]} 33... Qc7 {[%clk 0:02:08.7]} 34. Qe5 {[%clk 0:04:04.9]} 34...
Qc6 {[%clk 0:02:02.2]} 35. Nd6 {[%clk 0:03:59.4]} 35... Ba6 {[%clk 0:01:56.8]}
36. Qe8+ {[%clk 0:03:57.3]} 36... Qxe8 {[%clk 0:01:55.8]} 37. Nxe8 {[%clk
0:03:57.2]} 37... c4 {[%clk 0:01:51]} 38. bxc4 {[%clk 0:03:52.3]} 38... Bxc4
{[%clk 0:01:50.2]} 39. a3 {[%clk 0:03:51.8]} 39... Kf8 {[%clk 0:01:49]} 40. Nd6
{[%clk 0:03:50.9]} 40... Ba6 {[%clk 0:01:43.5]} 41. Ke3 {[%clk 0:03:50.3]} 41...
Ke7 {[%clk 0:01:42.8]} 42. Nf5+ {[%clk 0:03:49.3]} 42... Kf6 {[%clk 0:01:41.1]}
43. Nxh6 {[%clk 0:03:49.2]} 43... Bc8 {[%clk 0:01:38]} 44. f4 {[%clk 0:03:43.5]}
44... gxf4+ {[%clk 0:01:36.8]} 45. gxf4 {[%clk 0:03:42.7]} 45... Kg6 {[%clk
0:01:36.4]} 46. Ng8 {[%clk 0:03:41.8]} 46... Kg7 {[%clk 0:01:32.2]} 47. Ne7
{[%clk 0:03:41]} 47... Bd7 {[%clk 0:01:31.8]} 48. e5 {[%clk 0:03:39.3]} 48... f6
{[%clk 0:01:28.3]} 49. Ke4 {[%clk 0:03:38.2]} 49... fxe5 {[%clk 0:01:26.8]} 50.
Kxe5 {[%clk 0:03:38.1]} 50... Kf7 {[%clk 0:01:25.1]} 51. Nf5 {[%clk 0:03:37]}
51... Ba4 {[%clk 0:01:21.8]} 52. Nd6+ {[%clk 0:03:36.2]} 52... Ke7 {[%clk
0:01:20.3]} 53. f5 {[%clk 0:03:36.1]} 53... Bb3 {[%clk 0:01:19.1]} 54. f6+
{[%clk 0:03:36]} 54... Kf8 {[%clk 0:01:18.3]} 55. Nb5 {[%clk 0:03:33.3]} 55...
a6 {[%clk 0:01:14.7]} 56. Nc7 {[%clk 0:03:31.3]} 56... Bc4 {[%clk 0:01:13.4]}
57. Ne6+ {[%clk 0:03:29.8]} 57... Kf7 {[%clk 0:01:10.9]} 58. Ng5+ {[%clk
0:03:28]} 58... Kf8 {[%clk 0:01:10.1]} 59. Ne4 {[%clk 0:03:27.4]} 59... Bb5
{[%clk 0:01:06.1]} 60. h4 {[%clk 0:03:26.3]} 60... Be2 {[%clk 0:01:04.4]} 61.
Nd6 {[%clk 0:03:23.7]} 61... Bd1 {[%clk 0:01:00.3]} 62. Kf5 {[%clk 0:03:22.4]}
62... Bc2+ {[%clk 0:00:59.2]} 63. Kg5 {[%clk 0:03:21.4]} 63... Bd3 {[%clk
0:00:57.3]} 64. h5 {[%clk 0:03:20.8]} 64... Bc2 {[%clk 0:00:55.5]} 65. h6 {[%clk
0:03:16.9]} 65... Bd3 {[%clk 0:00:54.2]} 66. Kf4 {[%clk 0:03:16.1]} 66... Bc2
{[%clk 0:00:52.6]} 67. Ke3 {[%clk 0:03:14.5]} 67... Bb1 {[%clk 0:00:49.3]} 68.
Kd4 {[%clk 0:03:13.7]} 68... Bc2 {[%clk 0:00:46]} 69. Kc5 {[%clk 0:03:13]} 69...
a5 {[%clk 0:00:44.8]} 70. Kb5 {[%clk 0:03:10.7]} 70... a4 {[%clk 0:00:44.2]} 71.
h7 {[%clk 0:03:09.8]} 71... Bxh7 {[%clk 0:00:42.6]} 72. Kxa4 {[%clk 0:03:09.2]}
72... Bd3 {[%clk 0:00:31.9]} 73. Ka5 {[%clk 0:03:08.4]} 73... Kg8 {[%clk
0:00:26.4]} 74. Kb6 {[%clk 0:03:07.9]} 74... Kh7 {[%clk 0:00:25.5]} 75. a4
{[%clk 0:03:07.4]} 75... Kg6 {[%clk 0:00:24.9]} 76. f7 {[%clk 0:03:07]} 76...
Kg7 {[%clk 0:00:23.4]} 77. a5 {[%clk 0:03:06.5]} 77... Kf8 {[%clk 0:00:20.8]}
78. a6 {[%clk 0:03:05.7]} 1-0

[Event "Live Chess"]
[Site "Chess.com"]
[Date "2023.05.20"]
[Round "-"]
[White "Richardallis"]
[Black "Stanbad1"]
[Result "1-0"]
[WhiteElo "1885"]
[BlackElo "2393"]
[TimeControl "300"]
[EndTime "14:14:07 PDT"]
[Termination "Richardallis won by checkmate"]

1. d4 {[%clk 0:04:55.2]} 1... Nf6 {[%clk 0:04:57.3]} 2. Nf3 {[%clk 0:04:54.6]}
2... g6 {[%clk 0:04:55.4]} 3. Bf4 {[%clk 0:04:53.8]} 3... Bg7 {[%clk 0:04:54.5]}
4. Nbd2 {[%clk 0:04:52]} 4... O-O {[%clk 0:04:53.5]} 5. c3 {[%clk 0:04:50.9]}
5... d5 {[%clk 0:04:52.6]} 6. e3 {[%clk 0:04:49.8]} 6... c5 {[%clk 0:04:51.3]}
7. Bd3 {[%clk 0:04:48.3]} 7... Nc6 {[%clk 0:04:48.6]} 8. O-O {[%clk 0:04:46.8]}
8... Re8 {[%clk 0:04:45.8]} 9. Re1 {[%clk 0:04:45]} 9... cxd4 {[%clk 0:04:44.3]}
10. exd4 {[%clk 0:04:43.9]} 10... Bf5 {[%clk 0:04:42.3]} 11. Bxf5 {[%clk
0:04:42.2]} 11... gxf5 {[%clk 0:04:40.4]} 12. Nf1 {[%clk 0:04:35.7]} 12... e6
{[%clk 0:04:39.4]} 13. Ng3 {[%clk 0:04:30.9]} 13... Ne4 {[%clk 0:04:35.2]} 14.
Qc1 {[%clk 0:04:22.4]} 14... Qb6 {[%clk 0:04:31.3]} 15. Nh5 {[%clk 0:04:11]}
15... Rac8 {[%clk 0:04:27.7]} 16. Nxg7 {[%clk 0:04:06.4]} 16... Kxg7 {[%clk
0:04:23.2]} 17. Bh6+ {[%clk 0:04:05.8]} 17... Kh8 {[%clk 0:04:20.2]} 18. Rxe4
{[%clk 0:04:01.5]} 18... fxe4 {[%clk 0:04:17.7]} 19. Qg5 {[%clk 0:03:57.9]}
19... Qd8 {[%clk 0:04:05.8]} 20. Qg7# {[%clk 0:03:53.8]} 1-0

[Event "Live Chess"]
[Site "Chess.com"]
[Date "2023.05.20"]
[Round "-"]
[White "wot-not"]
[Black "MrBlond89"]
[Result "1-0"]
[WhiteElo "1528"]
[BlackElo "1404"]
[TimeControl "300"]
[EndTime "14:14:09 PDT"]
[Termination "wot-not won - game abandoned"]

1. e4 {[%clk 0:04:56.5]} 1... e5 {[%clk 0:04:59.2]} 2. f4 {[%clk 0:04:55.7]}
2... exf4 {[%clk 0:04:57.6]} 3. Nf3 {[%clk 0:04:54.9]} 3... Nc6 {[%clk
0:04:56.7]} 4. Bc4 {[%clk 0:04:53.5]} 4... Nge7 {[%clk 0:04:54.9]} 5. O-O {[%clk
0:04:52.5]} 5... d5 {[%clk 0:04:45]} 6. exd5 {[%clk 0:04:46.2]} 6... Nxd5 {[%clk
0:04:44.9]} 7. Nc3 {[%clk 0:04:35.7]} 7... Bc5+ {[%clk 0:04:39.6]} 8. Kh1 {[%clk
0:04:34.1]} 8... Nxc3 {[%clk 0:04:38.8]} 9. bxc3 {[%clk 0:04:33.4]} 9... Bg4
{[%clk 0:04:16.7]} 10. d4 {[%clk 0:04:30.8]} 10... Bxd4 {[%clk 0:04:04.2]} 11.
cxd4 {[%clk 0:04:26.3]} 11... Nxd4 {[%clk 0:04:04.1]} 12. Qxd4 {[%clk
0:04:17.1]} 12... O-O {[%clk 0:03:48.6]} 13. Qxd8 {[%clk 0:04:15.6]} 13... Raxd8
{[%clk 0:03:48.4]} 14. Ne5 {[%clk 0:04:07.3]} 14... Be6 {[%clk 0:03:30.3]} 15.
Bxe6 {[%clk 0:04:04.9]} 1-0

[Event "Live Chess"]
[Site "Chess.com"]
[Date "2023.05.20"]
[Round "-"]
[White "WelshTiger"]
[Black "omisoc"]
[Result "1-0"]
[WhiteElo "2384"]
[BlackElo "2139"]
[TimeControl "300"]
[EndTime "14:14:22 PDT"]
[Termination "WelshTiger won by resignation"]

1. e4 {[%clk 0:04:54.6]} 1... b6 {[%clk 0:04:57.2]} 2. a3 {[%clk 0:04:52.9]}
2... Bb7 {[%clk 0:04:55.9]} 3. Nc3 {[%clk 0:04:52.3]} 3... g6 {[%clk 0:04:53.8]}
4. h4 {[%clk 0:04:50.2]} 4... Nf6 {[%clk 0:04:46.7]} 5. e5 {[%clk 0:04:44.9]}
5... Nh5 {[%clk 0:04:44.2]} 6. d4 {[%clk 0:04:38]} 6... d6 {[%clk 0:04:40.6]} 7.
Be2 {[%clk 0:04:31.6]} 7... dxe5 {[%clk 0:04:34.3]} 8. Bxh5 {[%clk 0:04:19.1]}
8... gxh5 {[%clk 0:04:33]} 9. d5 {[%clk 0:03:58.5]} 9... c6 {[%clk 0:03:52.5]}
10. Qxh5 {[%clk 0:03:49.2]} 10... cxd5 {[%clk 0:03:50.8]} 11. Qxe5 {[%clk
0:03:48.3]} 11... Rg8 {[%clk 0:03:48.5]} 12. Nf3 {[%clk 0:03:35.5]} 12... Bg7
{[%clk 0:03:35.4]} 13. Qf5 {[%clk 0:03:28.6]} 13... h6 {[%clk 0:02:44.6]} 14.
Bf4 {[%clk 0:03:13.3]} 14... Bxc3+ {[%clk 0:02:07.5]} 15. bxc3 {[%clk 0:03:12]}
15... Qc8 {[%clk 0:02:06.6]} 16. Qxc8+ {[%clk 0:02:44.7]} 16... Bxc8 {[%clk
0:02:06.5]} 17. g3 {[%clk 0:02:42.6]} 17... h5 {[%clk 0:02:04]} 18. O-O-O {[%clk
0:02:39.2]} 18... Bb7 {[%clk 0:01:49.6]} 19. Rhe1 {[%clk 0:02:34.1]} 19... Nd7
{[%clk 0:01:45.9]} 20. Nd4 {[%clk 0:02:30.9]} 20... e6 {[%clk 0:01:42.8]} 21.
Nf5 {[%clk 0:02:16.8]} 21... Bc6 {[%clk 0:01:38.1]} 22. Bg5 {[%clk 0:02:05.9]}
22... a5 {[%clk 0:01:26.8]} 23. Nd6+ {[%clk 0:02:04.6]} 23... Kf8 {[%clk
0:01:25.5]} 24. f4 {[%clk 0:01:57.4]} 24... f6 {[%clk 0:01:17.6]} 25. Bh6+
{[%clk 0:01:54.4]} 25... Ke7 {[%clk 0:01:16.8]} 26. Nf5+ {[%clk 0:01:53.5]}
26... Kf7 {[%clk 0:01:16.1]} 27. Nd4 {[%clk 0:01:49]} 27... Bb7 {[%clk
0:00:39.2]} 28. Rxe6 {[%clk 0:01:35.3]} 28... Kg6 {[%clk 0:00:20.5]} 29. Bg5
{[%clk 0:01:30.3]} 29... Rge8 {[%clk 0:00:15.6]} 30. f5+ {[%clk 0:01:27.1]}
30... Kf7 {[%clk 0:00:13.5]} 31. Bf4 {[%clk 0:01:21.7]} 31... Nc5 {[%clk
0:00:10.3]} 32. Rxb6 {[%clk 0:01:19.8]} 32... Rac8 {[%clk 0:00:02.5]} 33. Bd6
{[%clk 0:01:12.8]} 1-0

[Event "Live Chess"]
[Site "Chess.com"]
[Date "2023.05.20"]
[Round "-"]
[White "Bob2pen"]
[Black "nigelst"]
[Result "0-1"]
[WhiteElo "1822"]
[BlackElo "1820"]
[TimeControl "300"]
[EndTime "14:14:22 PDT"]
[Termination "nigelst won by resignation"]

1. c4 {[%clk 0:04:55.7]} 1... e5 {[%clk 0:04:58]} 2. g3 {[%clk 0:04:54.6]} 2...
Nf6 {[%clk 0:04:56.7]} 3. Bg2 {[%clk 0:04:53.4]} 3... d5 {[%clk 0:04:56.3]} 4.
cxd5 {[%clk 0:04:52.2]} 4... Nxd5 {[%clk 0:04:55.4]} 5. Nc3 {[%clk 0:04:51.3]}
5... Nb6 {[%clk 0:04:54]} 6. Nf3 {[%clk 0:04:49.7]} 6... Nc6 {[%clk 0:04:52.5]}
7. O-O {[%clk 0:04:48.6]} 7... Be7 {[%clk 0:04:50.4]} 8. a3 {[%clk 0:04:47.4]}
8... O-O {[%clk 0:04:49]} 9. b4 {[%clk 0:04:46.2]} 9... a6 {[%clk 0:04:43.9]}
10. Bb2 {[%clk 0:04:39.3]} 10... Be6 {[%clk 0:04:42.2]} 11. Rc1 {[%clk
0:04:36.9]} 11... f6 {[%clk 0:04:41.1]} 12. Ne4 {[%clk 0:04:35.5]} 12... Bd5
{[%clk 0:04:23.6]} 13. Nc5 {[%clk 0:04:32.2]} 13... Bxc5 {[%clk 0:04:20.5]} 14.
Rxc5 {[%clk 0:04:29.2]} 14... Na4 {[%clk 0:04:13.9]} 15. Qxa4 {[%clk 0:04:06.2]}
15... e4 {[%clk 0:03:50.9]} 16. Nd4 {[%clk 0:04:00.5]} 16... Nxd4 {[%clk
0:03:44.2]} 17. Bxd4 {[%clk 0:03:59]} 17... Bc6 {[%clk 0:03:43]} 18. Rxc6 {[%clk
0:03:55.9]} 18... bxc6 {[%clk 0:03:37]} 19. Bc5 {[%clk 0:03:49.3]} 19... Re8
{[%clk 0:03:34.5]} 20. Qxc6 {[%clk 0:03:47.3]} 20... Qxd2 {[%clk 0:03:25.1]} 21.
e3 {[%clk 0:03:38.7]} 21... Qa2 {[%clk 0:03:06.1]} 22. Bxe4 {[%clk 0:03:31.2]}
22... Rad8 {[%clk 0:02:58.7]} 23. Bf3 {[%clk 0:03:11.2]} 23... Qxa3 {[%clk
0:02:49.7]} 24. Qxc7 {[%clk 0:03:06.6]} 24... Rc8 {[%clk 0:02:32.9]} 25. Bd5+
{[%clk 0:02:58.3]} 25... Kh8 {[%clk 0:02:29.7]} 26. Qf7 {[%clk 0:02:56.3]} 26...
Qd3 {[%clk 0:02:15]} 27. Bc4 {[%clk 0:02:47.9]} 27... Qe4 {[%clk 0:02:09.1]} 28.
Qd5 {[%clk 0:02:41.9]} 28... Qg4 {[%clk 0:01:57.5]} 29. Qg2 {[%clk 0:02:32]}
29... Qxc4 {[%clk 0:01:51.8]} 30. h4 {[%clk 0:02:26]} 30... a5 {[%clk
0:01:44.7]} 31. Rb1 {[%clk 0:02:21.9]} 31... axb4 {[%clk 0:01:38.1]} 32. Bxb4
{[%clk 0:02:20.3]} 32... Rb8 {[%clk 0:01:29.5]} 0-1

[Event "Live Chess"]
[Site "Chess.com"]
[Date "2023.05.20"]
[Round "-"]
[White "Brooms1989"]
[Black "manthanit"]
[Result "1-0"]
[WhiteElo "1039"]
[BlackElo "1009"]
[TimeControl "300"]
[EndTime "14:14:30 PDT"]
[Termination "Brooms1989 won by checkmate"]

1. e4 {[%clk 0:04:57.7]} 1... e6 {[%clk 0:04:58.5]} 2. d4 {[%clk 0:04:56.1]}
2... d5 {[%clk 0:04:58.1]} 3. Nc3 {[%clk 0:04:54.8]} 3... c5 {[%clk 0:04:55.1]}
4. dxc5 {[%clk 0:04:48.7]} 4... Bxc5 {[%clk 0:04:53.5]} 5. Nf3 {[%clk
0:04:47.3]} 5... a6 {[%clk 0:04:51.7]} 6. exd5 {[%clk 0:04:42.9]} 6... exd5
{[%clk 0:04:49.2]} 7. Qxd5 {[%clk 0:04:41]} 7... Qxd5 {[%clk 0:04:27.9]} 8. Nxd5
{[%clk 0:04:40.9]} 8... Bb4+ {[%clk 0:04:27.1]} 9. Nxb4 {[%clk 0:04:38.2]} 9...
Nf6 {[%clk 0:04:23.4]} 10. Bg5 {[%clk 0:04:34.3]} 10... Nbd7 {[%clk 0:04:20.1]}
11. Bxf6 {[%clk 0:04:31.6]} 11... Nxf6 {[%clk 0:04:18.7]} 12. O-O-O {[%clk
0:04:31.1]} 12... Bf5 {[%clk 0:04:17.4]} 13. Bd3 {[%clk 0:04:26.6]} 13... Bxd3
{[%clk 0:04:14.9]} 14. Rxd3 {[%clk 0:04:26.5]} 14... O-O {[%clk 0:04:13.8]} 15.
Rhd1 {[%clk 0:04:24]} 15... Rfe8 {[%clk 0:04:12]} 16. Re1 {[%clk 0:04:12.7]}
16... Ne4 {[%clk 0:04:01.2]} 17. Rde3 {[%clk 0:03:50.2]} 17... a5 {[%clk
0:02:40.7]} 18. Rxe4 {[%clk 0:03:45.4]} 18... Rxe4 {[%clk 0:02:39.3]} 19. Rxe4
{[%clk 0:03:45.2]} 19... axb4 {[%clk 0:02:38.4]} 20. Rxb4 {[%clk 0:03:44.9]}
20... f6 {[%clk 0:02:35.3]} 21. Rxb7 {[%clk 0:03:43.2]} 21... Rxa2 {[%clk
0:02:32.7]} 22. Kd2 {[%clk 0:03:41]} 22... Kf8 {[%clk 0:02:29.9]} 23. c4 {[%clk
0:03:35.2]} 23... g5 {[%clk 0:02:25.8]} 24. Kc3 {[%clk 0:03:31.4]} 24... h5
{[%clk 0:02:24.1]} 25. Rd7 {[%clk 0:03:29.8]} 25... Ke8 {[%clk 0:02:22.1]} 26.
Rd2 {[%clk 0:03:27.8]} 26... Ke7 {[%clk 0:02:16.8]} 27. c5 {[%clk 0:03:26.6]}
27... Ra8 {[%clk 0:02:14.3]} 28. c6 {[%clk 0:03:25.8]} 28... Rc8 {[%clk
0:02:12.8]} 29. Nd4 {[%clk 0:03:23.5]} 29... Kd6 {[%clk 0:02:03.8]} 30. Rc2
{[%clk 0:03:18.6]} 30... Ke5 {[%clk 0:01:57.4]} 31. Kd3 {[%clk 0:03:16.5]} 31...
Rd8 {[%clk 0:01:54.9]} 32. Rc4 {[%clk 0:03:13.2]} 32... Rb8 {[%clk 0:01:47.9]}
33. c7 {[%clk 0:03:11.3]} 33... Rxb2 {[%clk 0:01:46]} 34. c8=Q {[%clk
0:03:09.3]} 34... Rb1 {[%clk 0:01:45]} 35. Qe6+ {[%clk 0:03:06.1]} 35... Kf4
{[%clk 0:01:43.1]} 36. Qf5# {[%clk 0:03:03.7]} 1-0

[Event "Live Chess"]
[Site "Chess.com"]
[Date "2023.05.20"]
[Round "-"]
[White "weibs440"]
[Black "whitedjohn"]
[Result "1-0"]
[WhiteElo "943"]
[BlackElo "1648"]
[TimeControl "300"]
[EndTime "14:14:43 PDT"]
[Termination "weibs440 won by checkmate"]

1. e4 {[%clk 0:04:59.3]} 1... Nf6 {[%clk 0:04:56.9]} 2. Nc3 {[%clk 0:04:50.2]}
2... d5 {[%clk 0:04:52.5]} 3. e5 {[%clk 0:04:45.4]} 3... Nfd7 {[%clk 0:04:50.2]}
4. d4 {[%clk 0:04:40.7]} 4... e6 {[%clk 0:04:49.7]} 5. f4 {[%clk 0:04:37.8]}
5... c5 {[%clk 0:04:49.2]} 6. Nf3 {[%clk 0:04:20.8]} 6... Nc6 {[%clk 0:04:48.5]}
7. Ne2 {[%clk 0:04:01.1]} 7... Qb6 {[%clk 0:04:47.5]} 8. a3 {[%clk 0:03:53.7]}
8... cxd4 {[%clk 0:04:43.4]} 9. Nexd4 {[%clk 0:03:43.6]} 9... Bc5 {[%clk
0:04:42.5]} 10. c3 {[%clk 0:03:32.4]} 10... Nxd4 {[%clk 0:04:36.9]} 11. cxd4
{[%clk 0:03:25.6]} 11... Be7 {[%clk 0:04:32.2]} 12. Bd3 {[%clk 0:03:21.5]} 12...
O-O {[%clk 0:04:24.3]} 13. O-O {[%clk 0:03:13.5]} 13... Qc6 {[%clk 0:04:15.8]}
14. Kh1 {[%clk 0:02:58.4]} 14... a6 {[%clk 0:04:04.5]} 15. b4 {[%clk 0:02:53]}
15... b5 {[%clk 0:04:01.8]} 16. Qe1 {[%clk 0:02:50.6]} 16... Nb6 {[%clk
0:04:00.6]} 17. f5 {[%clk 0:02:43.6]} 17... Nc4 {[%clk 0:03:57.3]} 18. fxe6
{[%clk 0:02:34.6]} 18... Bxe6 {[%clk 0:03:51.8]} 19. Qg3 {[%clk 0:02:32.8]}
19... Kh8 {[%clk 0:03:47.7]} 20. Ng5 {[%clk 0:02:25.3]} 20... Bxg5 {[%clk
0:03:43.7]} 21. Qxg5 {[%clk 0:02:12.1]} 21... Qb6 {[%clk 0:03:25.9]} 22. Qh4
{[%clk 0:02:01.5]} 22... g6 {[%clk 0:03:23.9]} 23. Qf6+ {[%clk 0:01:57.7]} 23...
Kg8 {[%clk 0:03:19.7]} 24. Bh6 {[%clk 0:01:55.8]} 24... Qd8 {[%clk 0:03:09.6]}
25. Qg7# {[%clk 0:01:53.7]} 1-0

[Event "Live Chess"]
[Site "Chess.com"]
[Date "2023.05.20"]
[Round "-"]
[White "JoeRoot66"]
[Black "DRS44"]
[Result "1-0"]
[WhiteElo "1910"]
[BlackElo "1389"]
[TimeControl "300"]
[EndTime "14:14:48 PDT"]
[Termination "JoeRoot66 won by checkmate"]

1. Nf3 {[%clk 0:04:59.2]} 1... d5 {[%clk 0:04:52.1]} 2. d4 {[%clk 0:04:57.3]}
2... c5 {[%clk 0:04:43.2]} 3. e3 {[%clk 0:04:52.9]} 3... Nc6 {[%clk 0:04:35]} 4.
Bb5 {[%clk 0:04:49.2]} 4... Bd7 {[%clk 0:04:30]} 5. O-O {[%clk 0:04:45.2]} 5...
Nf6 {[%clk 0:04:18.5]} 6. b3 {[%clk 0:04:40.8]} 6... g6 {[%clk 0:04:13.6]} 7.
Bb2 {[%clk 0:04:37.7]} 7... Bg7 {[%clk 0:04:06.8]} 8. c4 {[%clk 0:04:35.4]} 8...
Nxd4 {[%clk 0:03:55.8]} 9. Bxd7+ {[%clk 0:04:31.4]} 9... Qxd7 {[%clk 0:03:50.4]}
10. exd4 {[%clk 0:04:31.3]} 10... Nh5 {[%clk 0:03:38]} 11. Ne5 {[%clk
0:04:26.4]} 11... Qf5 {[%clk 0:03:29.7]} 12. g4 {[%clk 0:04:19.3]} 12... Qg5
{[%clk 0:03:12.3]} 13. Bc1 {[%clk 0:04:04.2]} 13... Nf4 {[%clk 0:03:03.3]} 14.
Qf3 {[%clk 0:03:56]} 14... f6 {[%clk 0:02:49.3]} 15. Bxf4 {[%clk 0:03:50.3]}
15... Qh4 {[%clk 0:02:42.4]} 16. Nd3 {[%clk 0:03:44.5]} 16... g5 {[%clk
0:02:27.2]} 17. Bg3 {[%clk 0:03:38.9]} 17... Qh6 {[%clk 0:02:19.3]} 18. Nxc5
{[%clk 0:03:37.7]} 18... Rg8 {[%clk 0:01:59.4]} 19. Qxd5 {[%clk 0:03:30.6]}
19... Rf8 {[%clk 0:01:39.8]} 20. Ne6 {[%clk 0:03:22.7]} 20... Rf7 {[%clk
0:01:29.6]} 21. Nc7+ {[%clk 0:03:16.1]} 21... Kf8 {[%clk 0:01:17.8]} 22. Nxa8
{[%clk 0:03:16]} 22... Qh3 {[%clk 0:00:55.7]} 23. Qd8# {[%clk 0:03:13.9]} 1-0

[Event "Live Chess"]
[Site "Chess.com"]
[Date "2023.05.20"]
[Round "-"]
[White "Tushinskiy"]
[Black "Shepherds_Pie"]
[Result "1-0"]
[WhiteElo "2146"]
[BlackElo "1930"]
[TimeControl "300"]
[EndTime "14:15:06 PDT"]
[Termination "Tushinskiy won by resignation"]

1. d4 {[%clk 0:04:58]} 1... d5 {[%clk 0:04:57.9]} 2. c3 {[%clk 0:04:57.6]} 2...
Nf6 {[%clk 0:04:55.9]} 3. Nf3 {[%clk 0:04:57.3]} 3... g6 {[%clk 0:04:55.1]} 4.
Bf4 {[%clk 0:04:56.7]} 4... Bg7 {[%clk 0:04:54.3]} 5. Bg3 {[%clk 0:04:56.6]}
5... O-O {[%clk 0:04:53]} 6. Nbd2 {[%clk 0:04:56.2]} 6... c5 {[%clk 0:04:51.9]}
7. e3 {[%clk 0:04:55.4]} 7... Nc6 {[%clk 0:04:50.7]} 8. Bd3 {[%clk 0:04:54.6]}
8... Re8 {[%clk 0:04:48.2]} 9. Ne5 {[%clk 0:04:53]} 9... Nh5 {[%clk 0:04:46.4]}
10. f4 {[%clk 0:04:51]} 10... Nxg3 {[%clk 0:04:44.5]} 11. hxg3 {[%clk
0:04:50.9]} 11... Nxe5 {[%clk 0:04:39.9]} 12. fxe5 {[%clk 0:04:48.8]} 12... h5
{[%clk 0:04:38.3]} 13. Qf3 {[%clk 0:04:44.8]} 13... Bg4 {[%clk 0:04:35.9]} 14.
Qf2 {[%clk 0:04:43.9]} 14... e6 {[%clk 0:04:30.2]} 15. Nf3 {[%clk 0:04:42.8]}
15... cxd4 {[%clk 0:04:27.5]} 16. exd4 {[%clk 0:04:41.6]} 16... a6 {[%clk
0:04:22]} 17. O-O {[%clk 0:04:40.2]} 17... b5 {[%clk 0:04:20.3]} 18. Nh2 {[%clk
0:04:38.2]} 18... Bf5 {[%clk 0:04:15.2]} 19. Be2 {[%clk 0:04:34.3]} 19... Qg5
{[%clk 0:04:09.8]} 20. Qf4 {[%clk 0:04:31.6]} 20... Qxf4 {[%clk 0:04:07.9]} 21.
gxf4 {[%clk 0:04:31.5]} 21... Be4 {[%clk 0:04:03.5]} 22. Kf2 {[%clk 0:04:29.8]}
22... Bh6 {[%clk 0:04:01.2]} 23. g3 {[%clk 0:04:27.7]} 23... Rac8 {[%clk
0:03:57.6]} 24. Bf3 {[%clk 0:04:26.5]} 24... Bxf3 {[%clk 0:03:47.5]} 25. Kxf3
{[%clk 0:04:24.1]} 25... Kg7 {[%clk 0:03:46.3]} 26. Rfc1 {[%clk 0:04:21.9]}
26... Rc7 {[%clk 0:03:35.6]} 27. Rc2 {[%clk 0:04:17.9]} 27... Kh7 {[%clk
0:03:32.8]} 28. Rac1 {[%clk 0:04:16.4]} 28... Bg7 {[%clk 0:03:30.8]} 29. Nf1
{[%clk 0:04:15.6]} 29... f6 {[%clk 0:03:28.8]} 30. exf6 {[%clk 0:04:13.9]} 30...
Bxf6 {[%clk 0:03:27.4]} 31. Ne3 {[%clk 0:04:12.7]} 31... Kg7 {[%clk 0:03:25.7]}
32. g4 {[%clk 0:04:11.8]} 32... hxg4+ {[%clk 0:03:23.2]} 33. Nxg4 {[%clk
0:04:11.7]} 33... Kf7 {[%clk 0:03:21.8]} 34. Rh2 {[%clk 0:04:09.2]} 34... Rh8
{[%clk 0:03:17.7]} 35. Rxh8 {[%clk 0:04:01.6]} 35... Bxh8 {[%clk 0:03:15.3]} 36.
Rh1 {[%clk 0:04:01]} 36... Bg7 {[%clk 0:03:14.1]} 37. Ke3 {[%clk 0:03:51.5]}
37... a5 {[%clk 0:03:11.9]} 38. Kd3 {[%clk 0:03:50.6]} 38... b4 {[%clk 0:03:10]}
39. Rh7 {[%clk 0:03:47.6]} 39... Kg8 {[%clk 0:03:03.6]} 40. Rh2 {[%clk
0:03:45.8]} 40... a4 {[%clk 0:02:58.6]} 41. Ne3 {[%clk 0:03:38.2]} 41... a3
{[%clk 0:02:54.6]} 42. cxb4 {[%clk 0:03:36.7]} 42... axb2 {[%clk 0:02:50.6]} 43.
Rxb2 {[%clk 0:03:36.6]} 43... Bh6 {[%clk 0:02:43.9]} 44. Ng2 {[%clk 0:03:35.4]}
44... Rc4 {[%clk 0:02:38.6]} 45. Ne3 {[%clk 0:03:28.5]} 45... Rc1 {[%clk
0:02:35.6]} 46. b5 {[%clk 0:03:24.7]} 46... Bxf4 {[%clk 0:02:34.5]} 47. b6
{[%clk 0:03:23.8]} 47... Bb8 {[%clk 0:02:32.5]} 48. b7 {[%clk 0:03:18.4]} 48...
Rc7 {[%clk 0:02:29.1]} 49. a4 {[%clk 0:03:16.1]} 49... Kf7 {[%clk 0:02:27.9]}
50. a5 {[%clk 0:03:15.2]} 50... Rc6 {[%clk 0:02:26.6]} 51. Ng4 {[%clk
0:03:10.1]} 51... Ke7 {[%clk 0:02:22.6]} 52. Ne5 {[%clk 0:03:08.3]} 52... Ra6
{[%clk 0:02:20.8]} 53. Rb5 {[%clk 0:03:06]} 53... Kd6 {[%clk 0:02:16.5]} 54. Kc3
{[%clk 0:02:59.9]} 54... g5 {[%clk 0:02:11.3]} 55. Kb4 {[%clk 0:02:58.9]} 55...
Kc7 {[%clk 0:02:06.2]} 56. Kc5 {[%clk 0:02:32.5]} 56... Ba7+ {[%clk 0:02:02.3]}
57. Kb4 {[%clk 0:02:31.6]} 57... Kb8 {[%clk 0:01:58.4]} 58. Nd7+ {[%clk
0:02:28.6]} 1-0